[Event "*** Titled Tuesday 3|2 Blitz"]
[Site "Chess.com"]
[Date "2016.10.04"]
[Round "8"]
[White "ChessSkool"]
[Black "Iball95"]
[Result "1-0"]
[WhiteElo "2509"]
[BlackElo "2507"]
[TimeControl "180+2"]
[EndTime "12:38:10 PDT"]
[Termination "ChessSkool won on time"]

1. Nf3 {[%clk 0:03:00.4]} 1... Nf6 {[%clk 0:02:59.4]} 2. d4 {[%clk 0:02:59.1]}
2... e6 {[%clk 0:02:58.5]} 3. c4 {[%clk 0:03:00]} 3... d5 {[%clk 0:02:59.8]} 4.
g3 {[%clk 0:02:59.7]} 4... Be7 {[%clk 0:02:58]} 5. Bg2 {[%clk 0:03:00.6]} 5...
O-O {[%clk 0:02:59.6]} 6. O-O {[%clk 0:03:01.6]} 6... dxc4 {[%clk 0:03:00.9]} 7.
Qc2 {[%clk 0:03:02.8]} 7... b6 {[%clk 0:03:01.1]} 8. Bg5 {[%clk 0:03:01.4]} 8...
Bb7 {[%clk 0:02:58.6]} 9. Qxc4 {[%clk 0:02:59.3]} 9... Nbd7 {[%clk 0:02:59.8]}
10. Nc3 {[%clk 0:02:54.7]} 10... a6 {[%clk 0:02:52.6]} 11. Rac1 {[%clk
0:02:51.5]} 11... c5 {[%clk 0:02:46.7]} 12. dxc5 {[%clk 0:02:44.4]} 12... Nxc5
{[%clk 0:02:47.7]} 13. Rfd1 {[%clk 0:02:41.2]} 13... Qe8 {[%clk 0:02:47]} 14. b4
{[%clk 0:02:00.7]} 14... b5 {[%clk 0:02:37.3]} 15. Qf4 {[%clk 0:01:58.4]} 15...
Ncd7 {[%clk 0:02:22.4]} 16. Qc7 {[%clk 0:01:45.3]} 16... Bxf3 {[%clk 0:01:59.3]}
17. Bxf3 {[%clk 0:01:47.2]} 17... Rc8 {[%clk 0:01:59.7]} 18. Qa5 {[%clk
0:01:43.3]} 18... h6 {[%clk 0:01:42.1]} 19. Bf4 {[%clk 0:00:59.4]} 19... e5
{[%clk 0:00:57.2]} 20. Be3 {[%clk 0:00:59.6]} 20... Rc4 {[%clk 0:00:54.7]} 21.
a3 {[%clk 0:00:38.5]} 21... Qc8 {[%clk 0:00:47.7]} 22. Nd5 {[%clk 0:00:30.3]}
22... Bd8 {[%clk 0:00:28.8]} 23. Rxc4 {[%clk 0:00:31]} 23... bxc4 {[%clk
0:00:25.7]} 24. Nxf6+ {[%clk 0:00:30]} 24... Bxf6 {[%clk 0:00:24.4]} 25. Bg4
{[%clk 0:00:26]} 25... Rd8 {[%clk 0:00:22.3]} 26. Qa4 {[%clk 0:00:16.3]} 26...
c3 {[%clk 0:00:17]} 27. Rxd7 {[%clk 0:00:16.2]} 27... Rf8 {[%clk 0:00:05.4]} 28.
Bc5 {[%clk 0:00:14.6]} 28... h5 {[%clk 0:00:03.6]} 29. Bh3 {[%clk 0:00:14.8]}
1-0

[Event "*** Titled Tuesday 3|2 Blitz"]
[Site "Chess.com"]
[Date "2016.10.04"]
[Round "8"]
[White "Lali-Rustavi"]
[Black "AndrewMcStone"]
[Result "1-0"]
[WhiteElo "1856"]
[BlackElo "2005"]
[TimeControl "180+2"]
[EndTime "12:38:12 PDT"]
[Termination "Lali-Rustavi won by checkmate"]

1. e4 {[%clk 0:03:01.9]} 1... d5 {[%clk 0:02:56.7]} 2. exd5 {[%clk 0:03:01.2]}
2... Nf6 {[%clk 0:02:58.1]} 3. Nc3 {[%clk 0:03:02.4]} 3... Nxd5 {[%clk
0:02:58.4]} 4. Qf3 {[%clk 0:02:55]} 4... Nxc3 {[%clk 0:02:55.6]} 5. Qxc3 {[%clk
0:02:55.2]} 5... Nc6 {[%clk 0:02:49.1]} 6. Nf3 {[%clk 0:02:55.1]} 6... e6 {[%clk
0:02:44.9]} 7. Bb5 {[%clk 0:02:55.5]} 7... Bd7 {[%clk 0:02:40.1]} 8. O-O {[%clk
0:02:55.6]} 8... Bd6 {[%clk 0:02:35]} 9. d3 {[%clk 0:02:56]} 9... Qe7 {[%clk
0:02:12.6]} 10. Qxg7 {[%clk 0:02:42.8]} 10... O-O-O {[%clk 0:02:06.9]} 11. Bg5
{[%clk 0:02:40.8]} 11... f6 {[%clk 0:01:34.7]} 12. Qxe7 {[%clk 0:02:40.4]} 12...
Bxe7 {[%clk 0:01:34.5]} 13. Be3 {[%clk 0:02:38.2]} 13... Rhg8 {[%clk 0:01:30.5]}
14. Kh1 {[%clk 0:02:38.2]} 14... Rg7 {[%clk 0:01:22.4]} 15. Rae1 {[%clk
0:02:33.3]} 15... Rdg8 {[%clk 0:01:22.9]} 16. Rg1 {[%clk 0:02:34.4]} 16... a6
{[%clk 0:01:22.3]} 17. Bc4 {[%clk 0:02:34.9]} 17... Na5 {[%clk 0:01:11.5]} 18.
Bb3 {[%clk 0:02:15.6]} 18... Nxb3 {[%clk 0:01:08.7]} 19. axb3 {[%clk 0:02:16.7]}
19... Bc6 {[%clk 0:01:10.1]} 20. Bf4 {[%clk 0:01:37.7]} 20... e5 {[%clk
0:00:55.3]} 21. Bg3 {[%clk 0:01:38.5]} 21... Bb4 {[%clk 0:00:25]} 22. Rd1 {[%clk
0:01:13.9]} 22... Rg4 {[%clk 0:00:15]} 23. Nh4 {[%clk 0:01:10.6]} 23... R4g5
{[%clk 0:00:11.6]} 24. f3 {[%clk 0:01:06.7]} 24... Bd6 {[%clk 0:00:11.9]} 25. d4
{[%clk 0:00:59.6]} 25... exd4 {[%clk 0:00:09.9]} 26. Bxd6 {[%clk 0:00:59]} 26...
cxd6 {[%clk 0:00:11.4]} 27. Rxd4 {[%clk 0:00:57.7]} 27... Kc7 {[%clk 0:00:12]}
28. Rc4 {[%clk 0:00:54.4]} 28... Kd7 {[%clk 0:00:12.2]} 29. Rf4 {[%clk
0:00:55.5]} 29... Ke7 {[%clk 0:00:05.9]} 30. Nf5+ {[%clk 0:00:54.7]} 30... Kf8
{[%clk 0:00:06.4]} 31. Ng3 {[%clk 0:00:52.9]} 31... h5 {[%clk 0:00:06.7]} 32.
Re1 {[%clk 0:00:52.6]} 32... Kf7 {[%clk 0:00:07]} 33. Rd4 {[%clk 0:00:46.8]}
33... h4 {[%clk 0:00:07.8]} 34. Rxh4 {[%clk 0:00:47.2]} 34... f5 {[%clk
0:00:06.2]} 35. Rh7+ {[%clk 0:00:43.6]} 35... Kg6 {[%clk 0:00:07.3]} 36. Rhe7
{[%clk 0:00:39.9]} 36... f4 {[%clk 0:00:07.8]} 37. R1e6# {[%clk 0:00:40.3]} 1-0

[Event "*** Titled Tuesday 3|2 Blitz"]
[Site "Chess.com"]
[Date "2016.10.04"]
[Round "8"]
[White "Mornar1951"]
[Black "nihalsarin"]
[Result "1-0"]
[WhiteElo "2592"]
[BlackElo "2488"]
[TimeControl "180+2"]
[EndTime "12:38:27 PDT"]
[Termination "Mornar1951 won by resignation"]

1. d4 {[%clk 0:03:02]} 1... e6 {[%clk 0:02:59.7]} 2. c4 {[%clk 0:02:59.4]} 2...
Nf6 {[%clk 0:03:00.7]} 3. g3 {[%clk 0:02:59.1]} 3... d5 {[%clk 0:02:59.3]} 4.
Bg2 {[%clk 0:02:59.7]} 4... Be7 {[%clk 0:03:00.6]} 5. Nf3 {[%clk 0:03:00.1]}
5... O-O {[%clk 0:03:01.6]} 6. O-O {[%clk 0:03:01.8]} 6... dxc4 {[%clk
0:03:02.7]} 7. Qc2 {[%clk 0:03:03.4]} 7... a6 {[%clk 0:03:03.5]} 8. a4 {[%clk
0:03:05]} 8... Bd7 {[%clk 0:03:04.7]} 9. Rd1 {[%clk 0:03:06.5]} 9... Bc6 {[%clk
0:02:59.5]} 10. Nc3 {[%clk 0:03:07.2]} 10... Nbd7 {[%clk 0:02:49.6]} 11. e4
{[%clk 0:03:07.1]} 11... b5 {[%clk 0:02:50.6]} 12. d5 {[%clk 0:03:07.1]} 12...
exd5 {[%clk 0:02:50.3]} 13. e5 {[%clk 0:03:08.5]} 13... Ne4 {[%clk 0:02:44.8]}
14. Nxd5 {[%clk 0:03:09.4]} 14... Nec5 {[%clk 0:02:38.8]} 15. Nxe7+ {[%clk
0:03:00]} 15... Qxe7 {[%clk 0:02:38.7]} 16. Ng5 {[%clk 0:03:00.9]} 16... Nd3
{[%clk 0:02:15.8]} 17. Bxc6 {[%clk 0:02:58.3]} 17... Rae8 {[%clk 0:02:13.8]} 18.
axb5 {[%clk 0:02:52.8]} 18... axb5 {[%clk 0:02:12.9]} 19. Bxb5 {[%clk
0:02:51.6]} 19... h6 {[%clk 0:02:13.6]} 20. Bxd7 {[%clk 0:02:40.1]} 20... Qxd7
{[%clk 0:02:11]} 21. Qxc4 {[%clk 0:02:41.2]} 21... Rd8 {[%clk 0:02:01.4]} 22.
Nf3 {[%clk 0:02:25.6]} 22... Qf5 {[%clk 0:01:54.1]} 23. Bf4 {[%clk 0:01:58.5]}
23... Nxb2 {[%clk 0:01:49.6]} 24. Qe2 {[%clk 0:01:54.3]} 24... Nxd1 {[%clk
0:01:49.7]} 25. Rxd1 {[%clk 0:01:55.2]} 25... c5 {[%clk 0:01:39.9]} 26. Rc1
{[%clk 0:01:53]} 26... Rd5 {[%clk 0:01:40.6]} 27. h4 {[%clk 0:01:47.2]} 27...
Rfd8 {[%clk 0:01:38.8]} 28. Kg2 {[%clk 0:01:44.1]} 28... Qe6 {[%clk 0:01:21.1]}
29. Qe4 {[%clk 0:01:40.3]} 29... f5 {[%clk 0:01:19.8]} 30. Qc4 {[%clk
0:01:36.4]} 30... Kh7 {[%clk 0:01:15.2]} 31. Ra1 {[%clk 0:01:24.9]} 31... Qc6
{[%clk 0:00:55]} 32. Ra6 {[%clk 0:01:18.9]} 32... Qb7 {[%clk 0:00:55.9]} 33. Rd6
{[%clk 0:01:15.1]} 33... R8xd6 {[%clk 0:00:49.5]} 34. exd6 {[%clk 0:01:17]}
34... Qc6 {[%clk 0:00:50.8]} 35. Qc2 {[%clk 0:00:46.9]} 35... c4 {[%clk
0:00:48.2]} 36. Kh2 {[%clk 0:00:48.3]} 36... Qe8 {[%clk 0:00:13.3]} 37. Qxc4
{[%clk 0:00:43.5]} 37... Qe4 {[%clk 0:00:14.3]} 38. Qxe4 {[%clk 0:00:43.1]}
38... fxe4 {[%clk 0:00:15.5]} 39. Nd2 {[%clk 0:00:43.5]} 39... g5 {[%clk
0:00:16.6]} 40. hxg5 {[%clk 0:00:44.5]} 40... hxg5 {[%clk 0:00:17.9]} 41. Nxe4
{[%clk 0:00:43.5]} 41... Kg6 {[%clk 0:00:19]} 42. Nxg5 {[%clk 0:00:44.4]} 1-0

[Event "*** Titled Tuesday 3|2 Blitz"]
[Site "Chess.com"]
[Date "2016.10.04"]
[Round "8"]
[White "stuffings101"]
[Black "Usurpov"]
[Result "1-0"]
[WhiteElo "2140"]
[BlackElo "2265"]
[TimeControl "180+2"]
[EndTime "12:38:32 PDT"]
[Termination "stuffings101 won by checkmate"]

1. e4 {[%clk 0:02:31.1]} 1... c5 {[%clk 0:03:00.1]} 2. Nf3 {[%clk 0:02:24.2]}
2... Nc6 {[%clk 0:03:00.2]} 3. g3 {[%clk 0:02:21.4]} 3... g6 {[%clk 0:02:58.3]}
4. Bg2 {[%clk 0:02:22]} 4... Bg7 {[%clk 0:02:59]} 5. c3 {[%clk 0:02:18.9]} 5...
e5 {[%clk 0:02:54.5]} 6. O-O {[%clk 0:02:15.6]} 6... Nge7 {[%clk 0:02:54.9]} 7.
d3 {[%clk 0:02:12.9]} 7... b6 {[%clk 0:02:30]} 8. a3 {[%clk 0:02:06.3]} 8... O-O
{[%clk 0:02:25.7]} 9. b4 {[%clk 0:00:49.7]} 9... d6 {[%clk 0:02:25]} 10. b5
{[%clk 0:00:45.7]} 10... Na5 {[%clk 0:02:14.4]} 11. c4 {[%clk 0:00:42.2]} 11...
a6 {[%clk 0:02:13.2]} 12. a4 {[%clk 0:00:39.9]} 12... Nb7 {[%clk 0:02:04.3]} 13.
Bb2 {[%clk 0:00:38]} 13... a5 {[%clk 0:02:04.1]} 14. Nc3 {[%clk 0:00:35.6]}
14... Ra7 {[%clk 0:02:02.1]} 15. Re1 {[%clk 0:00:33.8]} 15... f5 {[%clk
0:01:59]} 16. exf5 {[%clk 0:00:31.2]} 16... gxf5 {[%clk 0:01:56.1]} 17. Nh4
{[%clk 0:00:29.4]} 17... Ng6 {[%clk 0:01:49]} 18. Nxg6 {[%clk 0:00:27.6]} 18...
hxg6 {[%clk 0:01:50.9]} 19. Nd5 {[%clk 0:00:26.4]} 19... Be6 {[%clk 0:01:50]}
20. f4 {[%clk 0:00:24.4]} 20... e4 {[%clk 0:01:13.9]} 21. Bxg7 {[%clk
0:00:22.3]} 21... Kxg7 {[%clk 0:01:14.3]} 22. dxe4 {[%clk 0:00:19.9]} 22... Bxd5
{[%clk 0:01:14.6]} 23. Qxd5 {[%clk 0:00:17.8]} 23... Qf6 {[%clk 0:01:11.9]} 24.
Qc6 {[%clk 0:00:15.9]} 24... Nd8 {[%clk 0:01:06.9]} 25. Qxb6 {[%clk 0:00:12.3]}
25... Re7 {[%clk 0:01:05]} 26. exf5 {[%clk 0:00:10.5]} 26... gxf5 {[%clk
0:00:59.9]} 27. Rxe7+ {[%clk 0:00:08.4]} 27... Qxe7 {[%clk 0:01:01.8]} 28. Rf1
{[%clk 0:00:05.4]} 28... Ne6 {[%clk 0:01:01.7]} 29. Qxa5 {[%clk 0:00:04.9]}
29... Nd4 {[%clk 0:00:56.8]} 30. Qc3 {[%clk 0:00:06.4]} 30... Kg6 {[%clk
0:00:57.3]} 31. Qd3 {[%clk 0:00:07]} 31... Re8 {[%clk 0:00:55.1]} 32. Kh1 {[%clk
0:00:08.4]} 32... Qc7 {[%clk 0:00:53]} 33. Bd5 {[%clk 0:00:09.3]} 33... Re2
{[%clk 0:00:50]} 34. g4 {[%clk 0:00:10.6]} 34... Qh7 {[%clk 0:00:47.9]} 35.
gxf5+ {[%clk 0:00:11.9]} 35... Kf6 {[%clk 0:00:48.8]} 36. Qg3 {[%clk 0:00:12.9]}
36... Nxf5 {[%clk 0:00:44.8]} 37. Qg5# {[%clk 0:00:13.7]} 1-0

[Event "*** Titled Tuesday 3|2 Blitz"]
[Site "Chess.com"]
[Date "2016.10.04"]
[Round "8"]
[White "GMHess"]
[Black "GMOratovsky"]
[Result "1-0"]
[WhiteElo "2585"]
[BlackElo "2419"]
[TimeControl "180+2"]
[EndTime "12:38:43 PDT"]
[Termination "GMHess won by checkmate"]

1. c4 {[%clk 0:03:02]} 1... e5 {[%clk 0:03:00.3]} 2. Nc3 {[%clk 0:03:02.3]} 2...
Bb4 {[%clk 0:03:01.5]} 3. Nf3 {[%clk 0:03:02.4]} 3... Bxc3 {[%clk 0:03:01.8]} 4.
dxc3 {[%clk 0:03:00.9]} 4... d6 {[%clk 0:03:01.1]} 5. g3 {[%clk 0:02:57.1]} 5...
Nc6 {[%clk 0:03:00.7]} 6. Bg2 {[%clk 0:02:49.5]} 6... f6 {[%clk 0:03:00.1]} 7.
O-O {[%clk 0:02:50.2]} 7... Be6 {[%clk 0:03:01.3]} 8. b3 {[%clk 0:02:50.9]} 8...
Qd7 {[%clk 0:03:02.4]} 9. Re1 {[%clk 0:02:50.2]} 9... Nge7 {[%clk 0:03:03]} 10.
Ba3 {[%clk 0:02:41.9]} 10... h5 {[%clk 0:03:00.8]} 11. h4 {[%clk 0:02:36.9]}
11... O-O-O {[%clk 0:03:00.6]} 12. b4 {[%clk 0:02:35.4]} 12... Bxc4 {[%clk
0:02:59.7]} 13. Nd2 {[%clk 0:02:36]} 13... Be6 {[%clk 0:02:52.8]} 14. b5 {[%clk
0:02:22.9]} 14... Nb8 {[%clk 0:02:32.3]} 15. Qa4 {[%clk 0:02:22.2]} 15... Bd5
{[%clk 0:02:00.2]} 16. e4 {[%clk 0:02:16.9]} 16... Be6 {[%clk 0:01:59.6]} 17.
Reb1 {[%clk 0:02:04.9]} 17... g5 {[%clk 0:01:54.5]} 18. Nf3 {[%clk 0:02:00.9]}
18... Ng6 {[%clk 0:01:47.3]} 19. hxg5 {[%clk 0:01:54.1]} 19... h4 {[%clk
0:01:49.2]} 20. gxf6 {[%clk 0:01:54]} 20... Bh3 {[%clk 0:01:48.4]} 21. Qxa7
{[%clk 0:01:30.6]} 21... hxg3 {[%clk 0:01:43.8]} 22. fxg3 {[%clk 0:01:31.3]}
22... Qg4 {[%clk 0:01:18.8]} 23. Qf2 {[%clk 0:01:20.4]} 23... Bxg2 {[%clk
0:00:46.9]} 24. Qxg2 {[%clk 0:01:22.3]} 24... Qxe4 {[%clk 0:00:26.1]} 25. Bc1
{[%clk 0:01:18.3]} 25... Qf5 {[%clk 0:00:23.5]} 26. Bg5 {[%clk 0:01:13.3]} 26...
Nf8 {[%clk 0:00:19.6]} 27. a4 {[%clk 0:01:06.1]} 27... Ne6 {[%clk 0:00:20.8]}
28. Bh4 {[%clk 0:01:07.3]} 28... Rdg8 {[%clk 0:00:22]} 29. Rf1 {[%clk
0:01:00.3]} 29... Nf4 {[%clk 0:00:22.3]} 30. Nd4 {[%clk 0:00:44.5]} 30... Nh3+
{[%clk 0:00:20.2]} 31. Kh2 {[%clk 0:00:42.9]} 31... Qd3 {[%clk 0:00:09.4]} 32.
Qxh3+ {[%clk 0:00:42.2]} 32... Nd7 {[%clk 0:00:10.7]} 33. f7 {[%clk 0:00:35.8]}
33... Rf8 {[%clk 0:00:12]} 34. Ne6 {[%clk 0:00:34.1]} 34... Qe2+ {[%clk
0:00:11.2]} 35. Qg2 {[%clk 0:00:30.5]} 35... Qg4 {[%clk 0:00:12.6]} 36. Nxf8
{[%clk 0:00:29.1]} 36... Rxf8 {[%clk 0:00:13.1]} 37. a5 {[%clk 0:00:24.7]} 37...
Kb8 {[%clk 0:00:13.9]} 38. a6 {[%clk 0:00:25.8]} 38... e4 {[%clk 0:00:12.7]} 39.
Rf4 {[%clk 0:00:23.9]} 39... Qg6 {[%clk 0:00:13]} 40. Qxe4 {[%clk 0:00:24.8]}
40... Qxe4 {[%clk 0:00:13.4]} 41. Rxe4 {[%clk 0:00:26.7]} 41... Rxf7 {[%clk
0:00:14.7]} 42. a7+ {[%clk 0:00:25.5]} 42... Ka8 {[%clk 0:00:14]} 43. Re8+
{[%clk 0:00:26.2]} 43... Nb8 {[%clk 0:00:15.5]} 44. axb8=Q# {[%clk 0:00:27.4]}
1-0

[Event "*** Titled Tuesday 3|2 Blitz"]
[Site "Chess.com"]
[Date "2016.10.04"]
[Round "8"]
[White "Frolyanov_D"]
[Black "bugsbunny444"]
[Result "1-0"]
[WhiteElo "2416"]
[BlackElo "2328"]
[TimeControl "180+2"]
[EndTime "12:38:45 PDT"]
[Termination "Frolyanov_D won by resignation"]

1. e4 {[%clk 0:03:01.9]} 1... e6 {[%clk 0:03:01.4]} 2. d4 {[%clk 0:02:58.7]}
2... d5 {[%clk 0:03:03]} 3. Nc3 {[%clk 0:03:00.1]} 3... Nf6 {[%clk 0:03:03.8]}
4. e5 {[%clk 0:03:00.6]} 4... Nfd7 {[%clk 0:03:04.8]} 5. f4 {[%clk 0:02:59.3]}
5... c5 {[%clk 0:03:06.2]} 6. Nf3 {[%clk 0:03:00.7]} 6... Nc6 {[%clk 0:03:07.7]}
7. Be3 {[%clk 0:03:01.6]} 7... cxd4 {[%clk 0:03:09.4]} 8. Nxd4 {[%clk
0:03:02.1]} 8... Bc5 {[%clk 0:03:11.1]} 9. Qd2 {[%clk 0:03:02.4]} 9... O-O
{[%clk 0:03:12.7]} 10. O-O-O {[%clk 0:03:02.1]} 10... a6 {[%clk 0:03:14.1]} 11.
h4 {[%clk 0:03:01.7]} 11... Nxd4 {[%clk 0:03:15]} 12. Bxd4 {[%clk 0:03:02.1]}
12... b5 {[%clk 0:03:16.9]} 13. h5 {[%clk 0:03:00.8]} 13... b4 {[%clk
0:03:17.2]} 14. Ne2 {[%clk 0:03:00.2]} 14... a5 {[%clk 0:03:17.1]} 15. g4 {[%clk
0:02:56.7]} 15... Qc7 {[%clk 0:03:03.8]} 16. g5 {[%clk 0:02:50.4]} 16... a4
{[%clk 0:02:34.4]} 17. Kb1 {[%clk 0:02:50.8]} 17... Ba6 {[%clk 0:02:01.5]} 18.
g6 {[%clk 0:02:48.8]} 18... Bxe2 {[%clk 0:01:22.5]} 19. Bxe2 {[%clk 0:02:50.7]}
19... Bxd4 {[%clk 0:01:23.2]} 20. Qxd4 {[%clk 0:02:48.8]} 20... b3 {[%clk
0:01:24.6]} 21. cxb3 {[%clk 0:02:24.2]} 21... axb3 {[%clk 0:01:25.5]} 22. gxh7+
{[%clk 0:02:21.6]} 22... Kh8 {[%clk 0:01:23.7]} 23. Rc1 {[%clk 0:02:20.3]} 23...
Qb6 {[%clk 0:01:06.9]} 24. Qxb6 {[%clk 0:02:18.4]} 24... bxa2+ {[%clk
0:01:08.1]} 25. Ka1 {[%clk 0:02:19.1]} 25... Nxb6 {[%clk 0:01:09.5]} 26. Rc6
{[%clk 0:02:16.2]} 26... Rfb8 {[%clk 0:00:46.7]} 27. Bd3 {[%clk 0:01:42.6]}
27... Na4 {[%clk 0:00:41.5]} 28. Rc2 {[%clk 0:01:27.9]} 28... Rb3 {[%clk
0:00:32]} 29. Rd1 {[%clk 0:01:23.8]} 29... Rab8 {[%clk 0:00:26.8]} 30. Rdd2
{[%clk 0:01:21.7]} 30... R3b4 {[%clk 0:00:09]} 31. Kxa2 {[%clk 0:01:15.5]} 31...
Rxf4 {[%clk 0:00:09.8]} 32. b3 {[%clk 0:01:08.3]} 32... Nb6 {[%clk 0:00:08.6]}
33. Rc6 {[%clk 0:01:07]} 33... Nd7 {[%clk 0:00:05.1]} 34. Rdc2 {[%clk
0:01:05.7]} 34... f5 {[%clk 0:00:04]} 35. exf6 {[%clk 0:00:57]} 35... Rxf6
{[%clk 0:00:05]} 36. Rc8+ {[%clk 0:00:52.3]} 36... Rxc8 {[%clk 0:00:04.6]} 37.
Rxc8+ {[%clk 0:00:54.2]} 37... Rf8 {[%clk 0:00:06.3]} 38. Rxf8+ {[%clk
0:00:53.3]} 38... Nxf8 {[%clk 0:00:07.6]} 39. b4 {[%clk 0:00:54.7]} 39... e5
{[%clk 0:00:06.9]} 40. Bf5 {[%clk 0:00:54.9]} 40... e4 {[%clk 0:00:08.4]} 41.
Kb3 {[%clk 0:00:54.2]} 41... e3 {[%clk 0:00:03.4]} 42. Kc2 {[%clk 0:00:53.7]}
42... d4 {[%clk 0:00:02.9]} 43. Kd3 {[%clk 0:00:54.1]} 43... g5 {[%clk
0:00:02.9]} 44. hxg6 {[%clk 0:00:54]} 44... Kg7 {[%clk 0:00:04.6]} 45. b5 {[%clk
0:00:54.8]} 1-0

[Event "*** Titled Tuesday 3|2 Blitz"]
[Site "Chess.com"]
[Date "2016.10.04"]
[Round "8"]
[White "andretta"]
[Black "Tash_Boy"]
[Result "0-1"]
[WhiteElo "2249"]
[BlackElo "2447"]
[TimeControl "180+2"]
[EndTime "12:39:35 PDT"]
[Termination "Tash_Boy won on time"]

1. b3 {[%clk 0:03:02]} 1... Nf6 {[%clk 0:02:58.8]} 2. Bb2 {[%clk 0:03:01.5]}
2... g6 {[%clk 0:03:00.4]} 3. Bxf6 {[%clk 0:03:01.4]} 3... exf6 {[%clk
0:03:01.5]} 4. c4 {[%clk 0:03:03.3]} 4... Bg7 {[%clk 0:03:03]} 5. Nc3 {[%clk
0:03:02.6]} 5... f5 {[%clk 0:03:01.2]} 6. Rc1 {[%clk 0:03:03.6]} 6... O-O {[%clk
0:03:01.8]} 7. g3 {[%clk 0:02:54.9]} 7... c6 {[%clk 0:03:03.7]} 8. Bg2 {[%clk
0:02:37.4]} 8... d6 {[%clk 0:03:05.6]} 9. e3 {[%clk 0:02:33.1]} 9... Nd7 {[%clk
0:03:07.5]} 10. Nge2 {[%clk 0:02:34.4]} 10... Ne5 {[%clk 0:03:06.9]} 11. d4
{[%clk 0:02:32]} 11... Ng4 {[%clk 0:03:05.1]} 12. O-O {[%clk 0:02:28.3]} 12...
h5 {[%clk 0:03:05.3]} 13. h3 {[%clk 0:02:25.6]} 13... Nf6 {[%clk 0:03:04.5]} 14.
h4 {[%clk 0:02:22.3]} 14... Ng4 {[%clk 0:03:03.6]} 15. b4 {[%clk 0:02:20.2]}
15... Bd7 {[%clk 0:03:02.1]} 16. a4 {[%clk 0:02:18]} 16... Qe7 {[%clk
0:03:01.5]} 17. a5 {[%clk 0:02:15.2]} 17... a6 {[%clk 0:02:56.2]} 18. Na4 {[%clk
0:02:12.8]} 18... Rae8 {[%clk 0:02:54.1]} 19. Nb6 {[%clk 0:02:10.5]} 19... Be6
{[%clk 0:02:51.6]} 20. Nf4 {[%clk 0:02:07.7]} 20... Bc8 {[%clk 0:02:41.6]} 21.
b5 {[%clk 0:02:05.3]} 21... Qc7 {[%clk 0:02:29.3]} 22. Qb3 {[%clk 0:02:02.5]}
22... Nf6 {[%clk 0:02:26.1]} 23. bxa6 {[%clk 0:01:38.9]} 23... bxa6 {[%clk
0:02:26.1]} 24. c5 {[%clk 0:01:36.9]} 24... d5 {[%clk 0:02:26.2]} 25. Rb1 {[%clk
0:01:27.1]} 25... Ne4 {[%clk 0:02:25.7]} 26. Rb2 {[%clk 0:01:23.9]} 26... Rd8
{[%clk 0:02:15.6]} 27. Rfb1 {[%clk 0:01:18.3]} 27... Bh6 {[%clk 0:02:15.7]} 28.
Nd3 {[%clk 0:01:01.6]} 28... Be6 {[%clk 0:02:14.7]} 29. Ne5 {[%clk 0:00:57.8]}
29... g5 {[%clk 0:02:04.8]} 30. hxg5 {[%clk 0:00:54.8]} 30... Bxg5 {[%clk
0:02:05.6]} 31. Qa4 {[%clk 0:00:53.1]} 31... Nc3 {[%clk 0:02:03.6]} 32. Qxc6
{[%clk 0:00:49.8]} 32... Qa7 {[%clk 0:01:27.3]} 33. Rc1 {[%clk 0:00:25.4]} 33...
Ne4 {[%clk 0:01:24.5]} 34. Bxe4 {[%clk 0:00:24.5]} 34... fxe4 {[%clk 0:01:24.3]}
35. Qa4 {[%clk 0:00:21.7]} 35... h4 {[%clk 0:01:19.5]} 36. Nc6 {[%clk
0:00:22.1]} 36... Qc7 {[%clk 0:01:19.2]} 37. Nxd8 {[%clk 0:00:18.4]} 37... Rxd8
{[%clk 0:01:19.3]} 38. Kg2 {[%clk 0:00:11]} 38... Bg4 {[%clk 0:01:16]} 39. Rc3
{[%clk 0:00:08.6]} 39... Bf3+ {[%clk 0:01:16.7]} 40. Kg1 {[%clk 0:00:08.3]}
40... hxg3 {[%clk 0:01:17.3]} 41. Nxd5 {[%clk 0:00:07]} 41... Rxd5 {[%clk
0:01:15.1]} 42. Qe8+ {[%clk 0:00:06]} 42... Kg7 {[%clk 0:01:16.5]} 43. Rb8
{[%clk 0:00:07]} 43... gxf2+ {[%clk 0:01:16.4]} 44. Kf1 {[%clk 0:00:07.9]} 44...
Bg2+ {[%clk 0:00:48.8]} 45. Ke2 {[%clk 0:00:07.1]} 45... f1=Q+ {[%clk
0:00:49.1]} 0-1